Cogmind - Beta 11 @@@ ROGUE MODE // 2023.02.07 @ 11:41:19 Player: ZarZap Result: Destroyed by as-85547 with Assembled Rifle Performance ------------- Evolutions (1) 500 Regions Visited (3) 600 Robots Destroyed (12) 60 Value Destroyed (320) 320 Prototype IDs (0) 0 Alien Tech Used (0) 0 Bonus (0) 0 TOTAL SCORE: 1480 Bonus ------- None Cogmind --------- Core Integrity 0/400 Matter 270/300 Energy 100/100 System Corruption 9% Temperature Cool (0) Movement Core (350) Ox6 Location -9/Mines Parts ------- > --- POWER (2) -------- (None) > --- PROPULSION (2) --- (None) > --- UTILITY (2) ------ Large Storage Unit > --- WEAPON (3) ------- (None) > --- INVENTORY (15) --- Compact Wheel Compact Wheel Compact Wheel Armored Wheel Small Storage Unit Visual Processing Unit Decoy Drone Bay Mini Grenade Launcher Peak State ------------ > --- POWER ------------ Light Ion Engine > --- PROPULSION ------- Aluminum Leg Aluminum Leg > --- UTILITY ---------- Large Storage Unit Structural Scanner > --- WEAPON ----------- Small Laser Beam Cannon Mini Grenade Launcher > --- INVENTORY -------- Compact Wheel Compact Wheel Compact Wheel Armored Wheel Small Storage Unit Visual Processing Unit Decoy Drone Bay Medium Laser Beam Cannon [Rating: 11] Favorites ----------- Power Light Ion Engine Engine Light Ion Engine Propulsion Aluminum Leg Leg Aluminum Leg Wheel Wheel Utility Structural Scanner Device Structural Scanner Storage Large Storage Unit Weapon Small Laser Energy Gun Small Laser Energy Cannon Beam Cannon Ballistic Gun Light Assault Rifle Launcher Mini Grenade Launcher Build | -11 -10 -9 -9 ------- Run | Scr Mat Mat Min Slots Evolved 2 | . . 2 . Power 1 | . . 1 . Propulsion . | . . . . Utility . | . . . . Weapon 1 | . . 1 . Parts Attached 16 | 6 5 2 3 Power 2 | 1 . 1 . Engine 2 | 1 . 1 . Core . | . . . . Reactor . | . . . . Propulsion 4 | 2 2 . . Treads . | . . . . Leg 2 | . 2 . . Wheel 2 | 2 . . . Hover . | . . . . Flight . | . . . . Utility 3 | 1 2 . . Device 1 | . 1 . . Storage 2 | 1 1 . . Processor . | . . . . Hackware . | . . . . Protection . | . . . . Artifact . | . . . . Weapon 7 | 2 1 1 3 Energy Gun 3 | 2 . . 1 Energy Cannon 2 | . . 1 1 Ballistic Gun 1 | . 1 . . Ballistic Cannon . | . . . . Launcher 1 | . . . 1 Special Weapon . | . . . . Impact Weapon . | . . . . Slashing Weapon . | . . . . Piercing Weapon . | . . . . Special Melee Weapon . | . . . . Unidentified Prototypes . | . . . . Parts Lost 12 | . 3 . 9 Power 2 | . . . 2 Propulsion 4 | . 2 . 2 Utility 1 | . . . 1 Weapon 5 | . 1 . 4 Highest Loss Streak 7 | . 3 . 7 To Critical Strikes . | . . . . Average Slot Usage (%) 91 | . 93 100 84 Engine 14 | . 14 22 10 Leg 21 | . 21 22 20 Wheel 1 | . 4 . . Device 10 | . 10 11 10 Storage 12 | . 14 11 11 Energy Gun 12 | . 16 11 10 Energy Cannon 6 | . . 11 11 Ballistic Gun 7 | . 10 11 . Launcher 3 | . . . 10 Naked Turns . | . . . . Heaviest Build 32 | 11 26 32 32 Greatest Support 26 | 26 26 20 20 Greatest Overweight (x) 7 | . 2 1 7 Average Overweight (x) . | . . 1 1 Largest Inventory Capacity 15 | 8 15 15 15 Average Capacity 12 | 7 10 15 15 Most Carried 10 | 3 5 7 10 Average Carried 4 | 1 2 5 7 Final Capacity 15 | 8 15 15 15 Final Carried 9 | 3 5 7 9 Class Distribution -------------------- 51% | Skirmisher 48% | Mutant Dominant Class ---------------- Mutant | -10/Materials Skirmisher | -9/Materials Skirmisher | -9/Mines Resources | -11 -10 -9 -9 ----------- Run | Scr Mat Mat Min Matter Collected 363 | 229 78 23 33 Remotely . | . . . . Salvage Created 443 | . 197 218 28 Parts 19 | . 8 10 1 Haulers Intercepted . | . . . . Recyclers Shooed . | . . . . Parts Field Recycled . | . . . . Retrieved Matter . | . . . . Parts Self-Destructed . | . . . . Prevented . | . . . . Kills | -11 -10 -9 -9 ------- Run | Scr Mat Mat Min Combat Hostiles Destroyed 13 | . 4 2 7 Guns 3 | . 3 . . Cannons 2 | . . 2 . AOE 8 | . 1 . 7 Classes Destroyed 6 | . 2 2 2 Recycler 1 | . . 1 . Watcher 2 | . 1 1 . Swarmer 3 | . . . 3 Grunt 4 | . 4 . . Sentry 2 | . . 2 . Assembled 4 | . . . 4 Best Kill Streak 4 | . 2 1 4 Combat Bots Only 4 | . 2 1 4 Max Kills in Single Turn 3 | . 1 1 3 Gunslinging . | . . . . Exploded 3 | . 1 . 3 Melee . | . . . . Uniques/NPCs Destroyed . | . . . . Combat | -11 -10 -9 -9 -------- Run | Scr Mat Mat Min Damage Taken 1549 | . 357 64 1128 Core 506 | . 97 . 409 Absorbed by Shields . | . . . . Core Remaining (%) 80 | 100 61 . . Volleys Fired 37 | . 22 7 8 Largest 3 | . 2 3 3 Hottest 130 | . 80 120 130 Shots Fired 84 | . 42 21 21 Gun 63 | . 42 14 7 Cannon 15 | . . 7 8 Launcher 6 | . . . 6 Special . | . . . . Kinetic 21 | . 12 7 2 Thermal 49 | . 22 14 13 Explosive 6 | . . . 6 Electromagnetic 8 | . 8 . . Robot Hit Streak 7 | . 7 7 4 Robot Miss Streak 3 | . 2 1 3 Penetration Max . | . . . . Secondary Targets . | . . . . Shots Hit Robots 54 | . 32 11 11 Core Hits 30 | . 11 5 14 Critical Kills 1 | . . 1 . Critical Parts Destroyed . | . . . . Critical Strikes 1 | . . 1 . Meltdown 1 | . . 1 . Melee Attacks . | . . . . Impact . | . . . . Slashing . | . . . . Piercing . | . . . . Sneak Attacks . | . . . . Combat Hostiles . | . . . . Follow-up Attacks . | . . . . Damage Inflicted 1180 | . 399 161 620 Guns 451 | . 345 57 49 Cannons 156 | . . 104 52 Explosions 562 | . 54 . 508 Melee . | . . . . Ramming 11 | . . . 11 Kinetic 107 | . 76 17 14 Thermal 474 | . 243 144 87 Explosive 508 | . . . 508 Electromagnetic 80 | . 80 . . Impact . | . . . . Slashing . | . . . . Piercing . | . . . . Highest Corruption 9 | . . . 9 Average Corruption 5 | . . . 5 Corruption Purged . | . . . . Corruption Blocked . | . . . . Effects 1 | . . . 1 Parts Rejected 1 | . . . 1 Overload Shots . | . . . . Overflow Damage 39 | . 4 . 35 Projectiles . | . . . . Explosions 39 | . 4 . 35 Melee . | . . . . Knockbacks . | . . . . Impact . | . . . . Kinetic . | . . . . Secondary . | . . . . Self-Inflicted Damage 125 | . 34 . 91 Shots 4 | . 1 . 3 Rammed . | . . . . Targets Rammed 1 | . . . 1 Kicked 1 | . . . 1 Crushed . | . . . . Highest Temperature 249 | . 249 141 120 Average Temperature 72 | . 92 60 45 Received Heat Transfer 279 | . 201 18 60 Siege Activations . | . . . . Robots Corrupted . | . . . . Combat Hostiles . | . . . . Parts Fried . | . . . . Impact Corruptions . | . . . . Robots Melted 1 | . . 1 . Combat Hostiles . | . . . . Parts Melted 5 | . 1 4 . Heat Transferred 1033 | . 525 322 186 Parts Sabotaged . | . . . . Parts Stolen . | . . . . Parts Stripped . | . . . . Power Chain Reactions 1 | . 1 . . Missiles Intercepted . | . . . . Alert | -11 -10 -9 -9 ------- Run | Scr Mat Mat Min Peak Influence 220 | . 125 117 220 Initial 45 | . . . 45 Average 87 | . 76 56 136 Maximum Alert Level 1 | . . . 1 Low Security (%) 98 | 100 100 100 95 Level 1 1 | . . . 4 Level 2 . | . . . . Level 3 . | . . . . Level 4 . | . . . . Level 5 . | . . . . High Security . | . . . . Max Security . | . . . . Squads Dispatched 1 | . . 1 . Investigation . | . . . . Extermination . | . . . . Reinforcement 1 | . . 1 . Assault . | . . . . Garrison . | . . . . Intercept . | . . . . Searches Triggered . | . . . . Construction Impeded . | . . . . Haulers Reinforced . | . . . . Active Scanning Responses . | . . . . Cargo Convoy Interrupts . | . . . . Stealth | -11 -10 -9 -9 --------- Run | Scr Mat Mat Min Distress Signals 1 | . 1 . . Communications Jammed . | . . . . Distress Signals . | . . . . Times Spotted 29 | . 8 4 17 Peak Tracking Total 7 | . 3 2 7 Tactical Retreats . | . . . . Traps | -11 -10 -9 -9 ------- Run | Scr Mat Mat Min Traps Triggered . | . . . . Indirectly . | . . . . Trap Hack Attempts . | . . . . Triggered . | . . . . Disarmed . | . . . . Reprogrammed . | . . . . Reused . | . . . . Traps Extracted . | . . . . Installed . | . . . . Triggered . | . . . . Machines | -11 -10 -9 -9 ---------- Run | Scr Mat Mat Min Machines Disabled . | . . . . Max in Single Turn . | . . . . Machines Sabotaged . | . . . . Garrisons Compromised . | . . . . Overloaded Fab Kills . | . . . . Hacking | -11 -10 -9 -9 --------- Run | Scr Mat Mat Min Machines Accessed 1 | . . . 1 Terminals . | . . . . Fabricators . | . . . . Repair Stations . | . . . . Recycling Units . | . . . . Scanalyzers . | . . . . Garrison Access . | . . . . Total Hacks 1 | . . . 1 Successful 1 | . . . 1 Failed . | . . . . Catastrophic . | . . . . Database Lockouts . | . . . . Manual . | . . . . Terminals . | . . . . Fabricators . | . . . . Repair Stations . | . . . . Recycling Units . | . . . . Scanalyzers . | . . . . Garrison Access . | . . . . Terminal Hacks 1 | . . . 1 Open Door 1 | . . . 1 Fabricator Hacks . | . . . . Repair Station Hacks . | . . . . Recycling Unit Hacks . | . . . . Scanalyzer . | . . . . Garrison Access Hacks . | . . . . Unauthorized Hacks . | . . . . Terminals . | . . . . Fabricators . | . . . . Repair Stations . | . . . . Recycling Units . | . . . . Scanalyzers . | . . . . Garrison Access . | . . . . Data Cores Recovered . | . . . . Used . | . . . . Hacking Detections . | . . . . Full Trace Events . | . . . . Feedback Events . | . . . . Feedback Blocked . | . . . . Robot Schematics Acquired . | . . . . Robots Built . | . . . . Authchips . | . . . . Time . | . . . . Total Robot Build Rating . | . . . . Part Schematics Acquired . | . . . . Parts Built . | . . . . Authchips . | . . . . Time . | . . . . Total Part Build Rating . | . . . . Parts Repaired . | . . . . Time . | . . . . Parts Recycled . | . . . . Recycled Matter . | . . . . Retrieved Matter . | . . . . Retrieved Components . | . . . . Parts Scanalyzed . | . . . . Part Schematics Acquired . | . . . . Parts Damaged . | . . . . Bothacking | -11 -10 -9 -9 ------------ Run | Scr Mat Mat Min Used RIF Installer . | . . . . Robots Hacked . | . . . . Non-combat . | . . . . Combat . | . . . . Robot Hacks Applied . | . . . . Relay Couplers Released . | . . . . Fabnet Peak Effective % . | . . . . Robots Rewired . | . . . . Allies Hacked . | . . . . Hacks Repelled . | . . . . Allies | -11 -10 -9 -9 -------- Run | Scr Mat Mat Min Total Allies . | . . . . Largest Group . | . . . . Highest-Rated Group . | . . . . Highest-Rated Ally . | . . . . Total Orders . | . . . . Ally Attacks . | . . . . Total Damage . | . . . . Kills . | . . . . Allies Corrupted . | . . . . Allies Melted . | . . . . Intel | -11 -10 -9 -9 ------- Run | Scr Mat Mat Min Robot Analysis Total . | . . . . Derelict Logs Recovered 2 | . . . 2 Drone Launches . | . . . . Drone Recoveries . | . . . . Exploration | -11 -10 -9 -9 ------------- Run | Scr Mat Mat Min Turns Passed 1045 | 68 426 208 343 Spaces Moved 562 | 61 250 92 159 Core 21 | 5 13 . 3 Treads . | . . . . Legs 446 | . 198 92 156 Wheels 95 | 56 39 . . Hover . | . . . . Flight . | . . . . Fastest Speed 50 | 50 90 190 190 Average Speed 157 | 86 138 190 195 Slowest Speed 400 | 90 190 190 400 Overloaded Moves . | . . . . Propulsion Burnouts . | . . . . Robots Hopped . | . . . . Cave-ins Triggered . | . . . . Exploration Rate (%) 24 | 3 47 14 35 Regions Visited 3 Branch Regions 1 Pre-discovered Areas 1 | . . . 1 Known Exits Taken . | . . . . Unknown Exits Taken 3 | 1 1 1 . Scrap Searched 1 | . . . 1 Spaces Dug . | . . . . Terrain Destroyed 69 | . 6 . 63 Melee . | . . . . Projectile . | . . . . AOE 69 | . 6 . 63 Terrain Rammed . | . . . . Walls Destroyed . | . . . . Machines Disabled . | . . . . Actions | -11 -10 -9 -9 --------- Run | Scr Mat Mat Min Total 650 | 75 290 111 174 Wait 15 | . 8 7 . Move 559 | 60 249 91 159 Hop . | . . . . Pick Up 22 | 9 6 4 3 Fast Attach . | . . . . Attach 14 | 6 4 2 2 Detach . | . . . . Swap 2 | . 1 . 1 Drop . | . . . . Fire 37 | . 22 7 8 Melee . | . . . . Ram . | . . . . Kick 1 | . . . 1 Crush . | . . . . Escape Stasis . | . . . . Rewire . | . . . . Trap . | . . . . Miscellaneous . | . . . . Route ------- -11/Scrapyard -10/Materials -9/Materials -9/Mines (discovered 2 exits: [*Mat] / [*Zio]) History --------- Turn | Location | Event 4 | -11/Scrapyard | Discovered new exit (range 16) 69 | -11/Scrapyard | Entered Materials 167 | -10/Materials | Lost 3 parts (2n1w) 300 | -10/Materials | Build established: Mutant 425 | -10/Materials | Discovered new exit (range 16) 495 | -10/Materials | Entered another Materials area 495 | -9/Materials | Evolved 2 slots: Power x1, Weapon x1 684 | -9/Materials | Discovered new exit (range 8) 703 | -9/Materials | Entered Mines 752 | -9/Mines | A Derelict revealed a hidden shortcut to a safe place 797 | -9/Mines | Build established: Skirmisher 810 | -9/Mines | Discovered new exit (range 10) 817 | -9/Mines | Received a Rocket Launcher from a helpful Derelict 901 | -9/Mines | Learned 2 Materials zone layouts 939 | -9/Mines | Found the Drone Emporium 947 | -9/Mines | Found Prototype Device 985 | -9/Mines | Assembled infested the area 990 | -9/Mines | Assisted by a Guerilla fighting off Assembled 1040 | -9/Mines | Core integrity fell below 50% 1045 | -9/Mines | Core integrity fell below 20% 1046 | -9/Mines | Destroyed by as-85547 with Assembled Rifle Last Messages --------------- 01007_ as-52063 destroyed. 01010_ Acquired 6 matter. 01010_ Aluminum Leg destroyed. 01012_ Lgt. Ion Engine destroyed. 01012_ System corrupted by crushing effect (+4). 01015_ Knocked back. 01017_ Sml. Laser destroyed. 01020_ as-41959 destroyed. 01021_ Structural Scanner destroyed. 01022_ Knocked back. 01032_ The unstable cave ceiling collapses. 01032_ Beam Cannon destroyed. 01032_ System corrupted by crushing effect (+1). 01035_ Aluminum Leg destroyed. 01035_ System corrupted by crushing effect (+4). 01036_ System corrupted: Med. Laser rejected. 01042_ Beam Cannon destroyed. 01042_ as-42663 destroyed. 01042_ as-39535 destroyed. 01043_ as-72971 destroyed. Map ----- +----------------------------------------------------+ | ###################??????????????????????? | | ## ###??????????????????????? | | ##??????????????????????? | | ########## ##??????????????????????? | | ########## ###??????????????????????? | | ????????### ####??????????????????????? | | ????????##### ###???????????????????????? | | ?????????#### ##????????????????????????? | | ???????????## #######???????????????????? | | ????######### #######???????????????????? | | ##??######### ##???????????????????? | | # #### ##???????????????????? | | # ??######### #### ##???????????????????? | | ????######## #### ##???????????????????? | | ???######### #### ##???????????????????? | | ??########## ### ##????????????????###? | | ??###""## ### ##???#########??? ##? | | ??##" # k ### ##??#### ## ##? | | ??##" ### ##??### # ##? | | ??##" ##?## a a #? | | ??##" #X d ##### a #? | | ??###""## # #??###? | | ??###### d a ##?????? | | ??### ##??????? | | ??## ####??????? | | ??## ####### @ ######??????? | | ??### ########?### ###????????? | | ??###############???# #??????????? | | ???########?????????## # ##??????????? | | | | | | | | | | | | | | | | | | | | | | | | | | | | | | | | | | | | | | | | | | | +----------------------------------------------------+ Best States ------------- Heat Dissipation 28 Energy Generation 15 Energy Capacity 150 Matter Stores 300 Matter Capacity 300 Sight Range 16 Terrain Scan Density 10 Evasion (%) 55 Item Schematics ----------------- None Robot Schematics ------------------ None Fabricated ------------ Nothing Alien Tech Used ----------------- None Achievements -------------- None Challenges ------------ None Game ------ Seed ThermicSeismicStick Manual? 0 Play Time 00:11:24 Cumulative 17.8 hours Start 2023.02.07 @ 11:26:21 End 2023.02.07 @ 11:41:19 Sessions 1 Manual Loads 0 Difficulty Rogue Special Mode None Game No. 39 Rogue 10 Adventurer 29 Explorer 0 Win Type - Total 0 Types 0/0/0/0/0/0/0/0/0 Lore% 21 Gallery% 24 Achievement% 17 Wizard Run 0 Options --------- ASCII 0 Keyboard 0 Movement Mouse Keybinds 0 Fullscreen 1 Font 12/Terminus Map View 83x54 Tactical HUD 1 Map Filters NONE Filters NONE Steam 0 RUN: f46be9c6-fb58-4c20-bca7-c9f1259e085e